[Event "Titled Tuesday Blitz May 30 Late 2023"]
[White "Karas, Marek"]
[Black "Stachanczyk, Jacek"]
[WhiteFideId "14928558"]
[BlackFideId "1116657"]
[WhiteElo "2233"]
[BlackElo "2084"]
[Result "1-0"]
[Round "04"]
[TimeControl "180+2"]
[Date "2023.05.31"]
[WhiteClock "0:00:10"]
[BlackClock "0:00:29"]

1. d4 {[%clk 0:02:58]}  Nf6 {[%clk 0:02:56]} 2. Nf3 {[%clk 0:02:59]}  g6 {[%clk 0:02:56]} 3. Bg5 {[%clk 0:02:58]}  Bg7 {[%clk 0:02:56]} 4. Nbd2 {[%clk 0:02:59]}  d5 {[%clk 0:02:55]} 5. e3 {[%clk 0:02:58]}  O-O {[%clk 0:02:54]} 6. Bd3 {[%clk 0:02:57]}  b6 {[%clk 0:02:51]} 7. O-O {[%clk 0:02:52]}  Bb7 {[%clk 0:02:51]} 8. c4 {[%clk 0:02:51]}  dxc4 {[%clk 0:02:37]} 9. Nxc4 {[%clk 0:02:50]}  Nbd7 {[%clk 0:02:37]} 10. Qe2 {[%clk 0:02:45]}  c5 {[%clk 0:02:37]} 11. Rfd1 {[%clk 0:02:37]}  cxd4 {[%clk 0:02:36]} 12. exd4 {[%clk 0:02:33]}  Rc8 {[%clk 0:02:26]} 13. Nce5 {[%clk 0:02:33]}  Nd5 {[%clk 0:02:19]} 14. a3 {[%clk 0:02:28]}  h6 {[%clk 0:02:01]} 15. Bd2 {[%clk 0:02:18]}  Nxe5 {[%clk 0:01:57]} 16. dxe5 {[%clk 0:02:10]}  Qc7 {[%clk 0:01:51]} 17. Rac1 {[%clk 0:02:09]}  Qb8 {[%clk 0:01:51]} 18. e6 {[%clk 0:02:03]}  f5 {[%clk 0:01:51]} 19. Nh4 {[%clk 0:01:57]}  Rxc1 {[%clk 0:01:29]} 20. Rxc1 {[%clk 0:01:57]}  Nf4 {[%clk 0:01:29]} 21. Qe3 {[%clk 0:01:39]}  Nxd3 {[%clk 0:01:26]} 22. Qxd3 {[%clk 0:01:40]}  Rd8 {[%clk 0:01:18]} 23. Qe2 {[%clk 0:01:28]}  Qd6 {[%clk 0:01:12]} 24. Be1 {[%clk 0:01:11]}  Kh7 {[%clk 0:01:11]} 25. b4 {[%clk 0:01:03]}  Qd5 {[%clk 0:00:59]} 26. Nf3 {[%clk 0:00:55]}  Rd6 {[%clk 0:00:59]} 27. Qc4 {[%clk 0:00:40]}  Qxc4 {[%clk 0:00:51]} 28. Rxc4 {[%clk 0:00:41]}  Bxf3 {[%clk 0:00:50]} 29. gxf3 {[%clk 0:00:40]}  Rxe6 {[%clk 0:00:48]} 30. Bd2 {[%clk 0:00:40]}  Re2 {[%clk 0:00:44]} 31. Be3 {[%clk 0:00:38]}  g5 {[%clk 0:00:43]} 32. Rc7 {[%clk 0:00:34]}  Bf6 {[%clk 0:00:40]} 33. Rxa7 {[%clk 0:00:29]}  b5 {[%clk 0:00:39]} 34. Bc5 {[%clk 0:00:27]}  Kg6 {[%clk 0:00:39]} 35. a4 {[%clk 0:00:25]}  bxa4 {[%clk 0:00:38]} 36. Rxa4 {[%clk 0:00:26]}  Rb2 {[%clk 0:00:37]} 37. Ra6 {[%clk 0:00:25]}  Kf7 {[%clk 0:00:37]} 38. Kg2 {[%clk 0:00:23]}  f4 {[%clk 0:00:37]} 39. h3 {[%clk 0:00:22]}  Rc2 {[%clk 0:00:32]} 40. Ra7 {[%clk 0:00:23]}  Ke6 {[%clk 0:00:32]} 41. Ra6+ {[%clk 0:00:23]}  Kf5 {[%clk 0:00:32]} 42. Ra7 {[%clk 0:00:21]}  e5 {[%clk 0:00:32]} 43. Rf7 {[%clk 0:00:17]}  Kg6 {[%clk 0:00:30]} 44. Ra7 {[%clk 0:00:13]}  h5 {[%clk 0:00:30]} 45. Ra6 {[%clk 0:00:09]}  Kf5 {[%clk 0:00:30]} 46. Rc6 {[%clk 0:00:06]}  Rb2 {[%clk 0:00:29]} 47. Ra6 {[%clk 0:00:06]}  Rb3 {[%clk 0:00:29]} 48. Rc6 {[%clk 0:00:06]}  Bd8 {[%clk 0:00:27]} 49. Rc8 {[%clk 0:00:06]}  Bf6 {[%clk 0:00:27]} 50. Rc6 {[%clk 0:00:06]}  g4 {[%clk 0:00:25]} 51. hxg4+ {[%clk 0:00:06]}  hxg4 {[%clk 0:00:26]} 52. fxg4+ {[%clk 0:00:07]}  Kg5 {[%clk 0:00:26]} 53. f3 {[%clk 0:00:05]}  Rb2+ {[%clk 0:00:26]} 54. Kf1 {[%clk 0:00:06]}  e4 {[%clk 0:00:24]} 55. fxe4 {[%clk 0:00:05]}  f3 {[%clk 0:00:22]} 56. Be3+ {[%clk 0:00:03]}  Kg6 {[%clk 0:00:22]} 57. Rxf6+ {[%clk 0:00:02]}  Kxf6 {[%clk 0:00:21]} 58. Bd4+ {[%clk 0:00:03]}  Kg5 {[%clk 0:00:22]} 59. Bxb2 {[%clk 0:00:04]}  Kxg4 {[%clk 0:00:23]} 60. e5 {[%clk 0:00:04]}  Kf5 {[%clk 0:00:23]} 61. Kf2 {[%clk 0:00:04]}  Ke6 {[%clk 0:00:24]} 62. Kxf3 {[%clk 0:00:05]}  Kd5 {[%clk 0:00:24]} 63. Kf4 {[%clk 0:00:05]}  Ke6 {[%clk 0:00:25]} 64. Ke4 {[%clk 0:00:06]}  Ke7 {[%clk 0:00:26]} 65. Kf5 {[%clk 0:00:07]}  Kf7 {[%clk 0:00:27]} 66. e6+ {[%clk 0:00:08]}  Ke8 {[%clk 0:00:28]} 67. Ke5 {[%clk 0:00:09]}  Ke7 {[%clk 0:00:28]} 68. Bd4 {[%clk 0:00:09]}  Ke8 {[%clk 0:00:29]} 69. Kd6 {[%clk 0:00:10]} 1-0


[Site "https://www.chess.com"]

[Event "Titled Tuesday Blitz May 30 Late 2023"]
[White "Vaglio Munoz, Jaime"]
[Black "Kielinkei"]
[WhiteFideId "6500145"]
[WhiteElo "2199"]
[BlackElo "2472"]
[Result "0-1"]
[Round "04"]
[TimeControl "180+2"]
[Date "2023.05.31"]
[WhiteClock "0:00:23"]
[BlackClock "0:00:17"]

1. Nf3 {[%clk 0:02:59]}  d5 {[%clk 0:02:58]} 2. c4 {[%clk 0:02:59]}  d4 {[%clk 0:02:56]} 3. e3 {[%clk 0:02:59]}  Nc6 {[%clk 0:02:53]} 4. a3 {[%clk 0:02:57]}  a5 {[%clk 0:02:48]} 5. e4 {[%clk 0:02:47]}  e5 {[%clk 0:02:45]} 6. d3 {[%clk 0:02:47]}  Nge7 {[%clk 0:02:35]} 7. Nbd2 {[%clk 0:02:36]}  Ng6 {[%clk 0:02:34]} 8. g3 {[%clk 0:02:36]}  Be7 {[%clk 0:02:31]} 9. Qa4 {[%clk 0:02:34]}  O-O {[%clk 0:02:30]} 10. b4 {[%clk 0:02:34]}  Be6 {[%clk 0:02:19]} 11. b5 {[%clk 0:02:33]}  Nb8 {[%clk 0:02:18]} 12. h4 {[%clk 0:02:33]}  h5 {[%clk 0:02:16]} 13. Bg2 {[%clk 0:02:11]}  Nd7 {[%clk 0:02:15]} 14. Qc2 {[%clk 0:02:10]}  Nc5 {[%clk 0:02:14]} 15. a4 {[%clk 0:02:08]}  Bg4 {[%clk 0:02:02]} 16. Nb3 {[%clk 0:02:07]}  Qd7 {[%clk 0:01:53]} 17. Nxc5 {[%clk 0:01:56]}  Bxc5 {[%clk 0:01:54]} 18. Ba3 {[%clk 0:01:55]}  Bxa3 {[%clk 0:01:46]} 19. Rxa3 {[%clk 0:01:56]}  b6 {[%clk 0:01:44]} 20. c5 {[%clk 0:01:54]}  Qe7 {[%clk 0:01:42]} 21. O-O {[%clk 0:01:48]}  Rac8 {[%clk 0:01:14]} 22. Rc1 {[%clk 0:01:46]}  c6 {[%clk 0:01:13]} 23. Raa1 {[%clk 0:01:30]}  cxb5 {[%clk 0:01:11]} 24. c6 {[%clk 0:01:29]}  b4 {[%clk 0:00:54]} 25. Qc4 {[%clk 0:01:26]}  Rc7 {[%clk 0:00:47]} 26. Qb5 {[%clk 0:01:24]}  Rb8 {[%clk 0:00:46]} 27. Nd2 {[%clk 0:00:55]}  Be6 {[%clk 0:00:34]} 28. Rf1 {[%clk 0:00:49]}  Qd6 {[%clk 0:00:29]} 29. Rac1 {[%clk 0:00:48]}  Ne7 {[%clk 0:00:28]} 30. f4 {[%clk 0:00:47]}  exf4 {[%clk 0:00:24]} 31. e5 {[%clk 0:00:45]}  Qd8 {[%clk 0:00:21]} 32. gxf4 {[%clk 0:00:44]}  Nf5 {[%clk 0:00:20]} 33. Nf3 {[%clk 0:00:34]}  Nxh4 {[%clk 0:00:19]} 34. Nxd4 {[%clk 0:00:31]}  Qxd4+ {[%clk 0:00:19]} 35. Kh2 {[%clk 0:00:31]}  Nxg2 {[%clk 0:00:18]} 36. Kxg2 {[%clk 0:00:31]}  Bd5+ {[%clk 0:00:19]} 37. Kg3 {[%clk 0:00:31]}  Qe3+ {[%clk 0:00:19]} 38. Kh4 {[%clk 0:00:28]}  Bf3 {[%clk 0:00:16]} 39. Qc4 {[%clk 0:00:26]}  Rxc6 {[%clk 0:00:16]} 40. Qb3 {[%clk 0:00:23]}  Qxf4+ {[%clk 0:00:15]} 41. Kh3 {[%clk 0:00:22]}  Qg4+ {[%clk 0:00:16]} 42. Kh2 {[%clk 0:00:23]}  Qg2# {[%clk 0:00:17]} 0-1


[Site "https://www.chess.com"]

[Event "Titled Tuesday Blitz May 30 Late 2023"]
[White "Bashkansky, Ethan"]
[Black "Goffredo_Fofi"]
[WhiteFideId "2071533"]
[WhiteElo "2311"]
[BlackElo "2471"]
[Result "1-0"]
[Round "04"]
[TimeControl "180+2"]
[Date "2023.05.31"]
[WhiteClock "0:00:11"]
[BlackClock "0:00:01"]

1. d4 {[%clk 0:03:00]}  g6 {[%clk 0:02:59]} 2. e4 {[%clk 0:02:59]}  Bg7 {[%clk 0:03:00]} 3. c3 {[%clk 0:03:00]}  c6 {[%clk 0:02:52]} 4. f4 {[%clk 0:02:59]}  d5 {[%clk 0:02:52]} 5. e5 {[%clk 0:02:59]}  Nh6 {[%clk 0:02:52]} 6. Be3 {[%clk 0:02:55]}  O-O {[%clk 0:02:52]} 7. Nf3 {[%clk 0:02:52]}  f6 {[%clk 0:02:52]} 8. Bd3 {[%clk 0:02:41]}  Na6 {[%clk 0:02:39]} 9. O-O {[%clk 0:02:34]}  Nc7 {[%clk 0:02:39]} 10. Kh1 {[%clk 0:02:33]}  b6 {[%clk 0:02:25]} 11. Nbd2 {[%clk 0:02:31]}  Ba6 {[%clk 0:02:21]} 12. Bxa6 {[%clk 0:02:27]}  Nxa6 {[%clk 0:02:21]} 13. Nh4 {[%clk 0:02:09]}  f5 {[%clk 0:02:05]} 14. Nhf3 {[%clk 0:02:02]}  Nf7 {[%clk 0:01:40]} 15. Bf2 {[%clk 0:01:46]}  Nc7 {[%clk 0:01:37]} 16. Bh4 {[%clk 0:01:45]}  Ne6 {[%clk 0:01:33]} 17. Ng5 {[%clk 0:01:17]}  Nfxg5 {[%clk 0:01:27]} 18. Bxg5 {[%clk 0:01:18]}  c5 {[%clk 0:01:09]} 19. Nb3 {[%clk 0:01:05]}  Qd7 {[%clk 0:00:57]} 20. Bh4 {[%clk 0:01:01]}  Bh6 {[%clk 0:00:46]} 21. g3 {[%clk 0:00:57]}  Rac8 {[%clk 0:00:38]} 22. Qf3 {[%clk 0:00:52]}  cxd4 {[%clk 0:00:32]} 23. Nxd4 {[%clk 0:00:49]}  Nxd4 {[%clk 0:00:31]} 24. cxd4 {[%clk 0:00:50]}  Rc2 {[%clk 0:00:28]} 25. Rf2 {[%clk 0:00:41]}  Rfc8 {[%clk 0:00:29]} 26. Kg2 {[%clk 0:00:37]}  Bf8 {[%clk 0:00:28]} 27. Rd1 {[%clk 0:00:34]}  Rxf2+ {[%clk 0:00:25]} 28. Qxf2 {[%clk 0:00:32]}  Qa4 {[%clk 0:00:20]} 29. b3 {[%clk 0:00:30]}  Qb5 {[%clk 0:00:19]} 30. Rd2 {[%clk 0:00:28]}  e6 {[%clk 0:00:18]} 31. Rc2 {[%clk 0:00:26]}  Qd7 {[%clk 0:00:18]} 32. Qd2 {[%clk 0:00:25]}  Ba3 {[%clk 0:00:17]} 33. Rc3 {[%clk 0:00:20]}  Rc6 {[%clk 0:00:13]} 34. Qc2 {[%clk 0:00:19]}  Rxc3 {[%clk 0:00:13]} 35. Qxc3 {[%clk 0:00:20]}  Kf7 {[%clk 0:00:13]} 36. b4 {[%clk 0:00:19]}  Qa4 {[%clk 0:00:10]} 37. Qc7+ {[%clk 0:00:18]}  Kg8 {[%clk 0:00:09]} 38. Qd8+ {[%clk 0:00:13]}  Kf7 {[%clk 0:00:09]} 39. Qe7+ {[%clk 0:00:13]}  Kg8 {[%clk 0:00:08]} 40. Bf6 {[%clk 0:00:11]}  Qd7 {[%clk 0:00:01]} 41. Qxd7 {[%clk 0:00:11]} 1-0


[Site "https://www.chess.com"]

[Event "Titled Tuesday Blitz May 30 Late 2023"]
[White "Sanhueza, Cristian"]
[Black "Leschinsky, Gary"]
[WhiteFideId "116815"]
[BlackFideId "30951321"]
[WhiteElo "2174"]
[BlackElo "1855"]
[Result "1-0"]
[Round "04"]
[TimeControl "180+2"]
[Date "2023.05.31"]
[WhiteClock "0:00:11"]
[BlackClock "0:01:15"]

1. e4 {[%clk 0:03:00]}  c5 {[%clk 0:02:59]} 2. Nf3 {[%clk 0:03:01]}  Nc6 {[%clk 0:02:58]} 3. d4 {[%clk 0:03:00]}  cxd4 {[%clk 0:02:58]} 4. Nxd4 {[%clk 0:03:01]}  Nf6 {[%clk 0:02:59]} 5. Nc3 {[%clk 0:03:01]}  e6 {[%clk 0:03:00]} 6. Ndb5 {[%clk 0:03:00]}  Bc5 {[%clk 0:02:59]} 7. Nd6+ {[%clk 0:02:47]}  Ke7 {[%clk 0:02:58]} 8. Nxc8+ {[%clk 0:02:20]}  Rxc8 {[%clk 0:02:59]} 9. Bg5 {[%clk 0:02:12]}  h6 {[%clk 0:02:48]} 10. Bh4 {[%clk 0:02:07]}  Bd4 {[%clk 0:02:47]} 11. Bd3 {[%clk 0:01:57]}  Qa5 {[%clk 0:02:43]} 12. O-O {[%clk 0:01:53]}  Bxc3 {[%clk 0:02:41]} 13. bxc3 {[%clk 0:01:52]}  Qxc3 {[%clk 0:02:41]} 14. f4 {[%clk 0:01:45]}  Kf8 {[%clk 0:02:40]} 15. Rb1 {[%clk 0:01:35]}  Nb4 {[%clk 0:02:33]} 16. Rb3 {[%clk 0:01:28]}  Qd4+ {[%clk 0:02:32]} 17. Bf2 {[%clk 0:01:28]}  Qc3 {[%clk 0:02:05]} 18. Rxc3 {[%clk 0:00:53]}  Rxc3 {[%clk 0:02:06]} 19. Be1 {[%clk 0:00:48]}  Rxd3 {[%clk 0:02:06]} 20. cxd3 {[%clk 0:00:47]}  Nc6 {[%clk 0:02:06]} 21. Qa4 {[%clk 0:00:37]}  d5 {[%clk 0:02:05]} 22. e5 {[%clk 0:00:32]}  Nd7 {[%clk 0:02:05]} 23. d4 {[%clk 0:00:31]}  g6 {[%clk 0:02:04]} 24. g4 {[%clk 0:00:27]}  h5 {[%clk 0:01:57]} 25. f5 {[%clk 0:00:21]}  gxf5 {[%clk 0:01:57]} 26. gxf5 {[%clk 0:00:22]}  Rg8+ {[%clk 0:01:57]} 27. Kh1 {[%clk 0:00:22]}  Ke8 {[%clk 0:01:57]} 28. fxe6 {[%clk 0:00:20]}  fxe6 {[%clk 0:01:56]} 29. Bh4 {[%clk 0:00:21]}  Rg4 {[%clk 0:01:55]} 30. Bf2 {[%clk 0:00:18]}  Ndxe5 {[%clk 0:01:54]} 31. Qc2 {[%clk 0:00:16]}  Nc4 {[%clk 0:01:50]} 32. Qh7 {[%clk 0:00:15]}  Ne7 {[%clk 0:01:45]} 33. Rg1 {[%clk 0:00:14]}  Rf4 {[%clk 0:01:42]} 34. Rg7 {[%clk 0:00:13]}  Nc6 {[%clk 0:01:16]} 35. Rg8+ {[%clk 0:00:11]}  Rf8 {[%clk 0:01:15]} 36. Qxh5+ {[%clk 0:00:11]}  Ke7 {[%clk 0:01:15]} 37. Bh4+ {[%clk 0:00:11]} 1-0


[Site "https://www.chess.com"]

[Event "Titled Tuesday Blitz May 30 Late 2023"]
[White "Cardozo Munar, Carlos Eduardo"]
[Black "Omariev, Maksim"]
[WhiteFideId "4409477"]
[BlackFideId "4193423"]
[WhiteElo "2067"]
[BlackElo "2464"]
[Result "0-1"]
[Round "04"]
[TimeControl "180+2"]
[Date "2023.05.31"]
[WhiteClock "0:00:04"]
[BlackClock "0:00:03"]

1. d4 {[%clk 0:03:00]}  d5 {[%clk 0:03:00]} 2. c3 {[%clk 0:02:58]}  Nf6 {[%clk 0:02:59]} 3. Bg5 {[%clk 0:02:58]}  Ne4 {[%clk 0:02:57]} 4. h4 {[%clk 0:02:55]}  c5 {[%clk 0:02:53]} 5. e3 {[%clk 0:02:52]}  Nc6 {[%clk 0:02:46]} 6. Nd2 {[%clk 0:02:51]}  Nxg5 {[%clk 0:02:36]} 7. hxg5 {[%clk 0:02:52]}  e5 {[%clk 0:02:37]} 8. Bb5 {[%clk 0:02:47]}  exd4 {[%clk 0:02:29]} 9. exd4 {[%clk 0:02:41]}  Qxg5 {[%clk 0:02:28]} 10. Ngf3 {[%clk 0:02:35]}  Qxg2 {[%clk 0:02:18]} 11. Qe2+ {[%clk 0:02:35]}  Be6 {[%clk 0:02:16]} 12. O-O-O {[%clk 0:02:36]}  Qg4 {[%clk 0:01:51]} 13. Rh4 {[%clk 0:01:52]}  Qf5 {[%clk 0:01:46]} 14. Ne5 {[%clk 0:01:39]}  Rc8 {[%clk 0:01:38]} 15. Re1 {[%clk 0:01:29]}  Be7 {[%clk 0:01:34]} 16. Rh5 {[%clk 0:01:09]}  Qf6 {[%clk 0:00:32]} 17. Bxc6+ {[%clk 0:01:01]}  bxc6 {[%clk 0:00:31]} 18. Qa6 {[%clk 0:01:01]}  O-O {[%clk 0:00:22]} 19. Nxc6 {[%clk 0:00:56]}  Bd6 {[%clk 0:00:14]} 20. Nxa7 {[%clk 0:00:46]}  Rcd8 {[%clk 0:00:14]} 21. Reh1 {[%clk 0:00:44]}  h6 {[%clk 0:00:13]} 22. Nb5 {[%clk 0:00:42]}  Bf4 {[%clk 0:00:08]} 23. Rd1 {[%clk 0:00:14]}  Ra8 {[%clk 0:00:07]} 24. Qc6 {[%clk 0:00:05]}  Rfc8 {[%clk 0:00:07]} 25. Qb6 {[%clk 0:00:04]}  Rab8 {[%clk 0:00:03]} 0-1


[Site "https://www.chess.com"]

[Event "Titled Tuesday Blitz May 30 Late 2023"]
[White "zano2023"]
[Black "Buchenau, Frank"]
[BlackFideId "4604350"]
[WhiteElo "2185"]
[BlackElo "2157"]
[Result "0-1"]
[Round "04"]
[TimeControl "180+2"]
[Date "2023.05.31"]
[WhiteClock "0:02:14"]
[BlackClock "0:01:44"]

1. d4 {[%clk 0:03:00]}  Nf6 {[%clk 0:02:53]} 2. Nd2 {[%clk 0:02:59]}  d5 {[%clk 0:02:51]} 3. Ngf3 {[%clk 0:02:59]}  c5 {[%clk 0:02:50]} 4. e3 {[%clk 0:02:59]}  Bg4 {[%clk 0:02:47]} 5. c3 {[%clk 0:02:56]}  e6 {[%clk 0:02:46]} 6. Qa4+ {[%clk 0:02:52]}  Nfd7 {[%clk 0:02:27]} 7. Ne5 {[%clk 0:02:48]}  Bf5 {[%clk 0:02:26]} 8. Ndf3 {[%clk 0:02:27]}  f6 {[%clk 0:02:16]} 9. Nxd7 {[%clk 0:02:23]}  Qxd7 {[%clk 0:02:05]} 10. Bb5 {[%clk 0:02:22]}  Nc6 {[%clk 0:02:05]} 11. dxc5 {[%clk 0:02:21]}  Bxc5 {[%clk 0:02:02]} 12. Nd4 {[%clk 0:02:21]}  Rc8 {[%clk 0:01:46]} 13. Qxa7 {[%clk 0:02:14]}  Bxa7 {[%clk 0:01:44]} 0-1


[Site "https://www.chess.com"]

[Event "Titled Tuesday Blitz May 30 Late 2023"]
[White "Mazurkiewicz, Michal"]
[Black "Winkels, Marcel"]
[WhiteFideId "1124943"]
[BlackFideId "1003887"]
[WhiteElo "2054"]
[BlackElo "1900"]
[Result "1-0"]
[Round "04"]
[TimeControl "180+2"]
[Date "2023.05.31"]
[WhiteClock "0:02:03"]
[BlackClock "0:00:02"]

1. e4 {[%clk 0:03:00]}  Nf6 {[%clk 0:03:00]} 2. d3 {[%clk 0:02:59]}  d5 {[%clk 0:02:59]} 3. Nd2 {[%clk 0:02:59]}  Nc6 {[%clk 0:02:54]} 4. Ngf3 {[%clk 0:03:00]}  e5 {[%clk 0:02:54]} 5. g3 {[%clk 0:02:56]}  Bc5 {[%clk 0:02:52]} 6. Bg2 {[%clk 0:02:56]}  O-O {[%clk 0:02:52]} 7. O-O {[%clk 0:02:56]}  Bg4 {[%clk 0:02:41]} 8. c3 {[%clk 0:02:56]}  Qd7 {[%clk 0:02:34]} 9. b4 {[%clk 0:02:55]}  Be7 {[%clk 0:02:24]} 10. b5 {[%clk 0:02:52]}  Na5 {[%clk 0:02:22]} 11. Nxe5 {[%clk 0:02:51]}  Bxd1 {[%clk 0:02:20]} 12. Nxd7 {[%clk 0:02:51]}  Nxd7 {[%clk 0:02:19]} 13. Rxd1 {[%clk 0:02:51]}  dxe4 {[%clk 0:01:58]} 14. Nxe4 {[%clk 0:02:49]}  f5 {[%clk 0:01:53]} 15. Ng5 {[%clk 0:02:45]}  Bf6 {[%clk 0:01:52]} 16. Ne6 {[%clk 0:02:43]}  Rfc8 {[%clk 0:01:44]} 17. d4 {[%clk 0:02:41]}  Kf7 {[%clk 0:01:26]} 18. Bd5 {[%clk 0:02:35]}  c6 {[%clk 0:01:25]} 19. bxc6 {[%clk 0:02:29]}  bxc6 {[%clk 0:01:25]} 20. Ng5+ {[%clk 0:02:26]}  Kg6 {[%clk 0:01:24]} 21. Bf7+ {[%clk 0:02:26]}  Kh6 {[%clk 0:01:23]} 22. Nf3+ {[%clk 0:02:14]}  g5 {[%clk 0:01:15]} 23. h4 {[%clk 0:02:14]}  Kg7 {[%clk 0:01:09]} 24. Be6 {[%clk 0:02:13]}  Rd8 {[%clk 0:00:58]} 25. hxg5 {[%clk 0:02:13]}  Be7 {[%clk 0:00:47]} 26. Bf4 {[%clk 0:02:13]}  Rac8 {[%clk 0:00:37]} 27. Ne5 {[%clk 0:02:11]}  Nxe5 {[%clk 0:00:11]} 28. Bxe5+ {[%clk 0:02:12]}  Kg6 {[%clk 0:00:11]} 29. Bxc8 {[%clk 0:02:12]}  Rxc8 {[%clk 0:00:11]} 30. f4 {[%clk 0:02:13]}  Nc4 {[%clk 0:00:11]} 31. Rab1 {[%clk 0:02:13]}  Bf8 {[%clk 0:00:07]} 32. Rb7 {[%clk 0:02:12]}  a5 {[%clk 0:00:06]} 33. Rdb1 {[%clk 0:02:09]}  c5 {[%clk 0:00:05]} 34. Rb8 {[%clk 0:02:02]}  Rxb8 {[%clk 0:00:02]} 35. Rxb8 {[%clk 0:02:03]} 1-0


[Site "https://www.chess.com"]

[Event "Titled Tuesday Blitz May 30 Late 2023"]
[White "Stead, Kerry"]
[Black "Jakic, Ivan"]
[WhiteFideId "3202577"]
[BlackFideId "14504901"]
[WhiteElo "1997"]
[BlackElo "2370"]
[Result "0-1"]
[Round "04"]
[TimeControl "180+2"]
[Date "2023.05.31"]
[WhiteClock "0:00:24"]
[BlackClock "0:00:09"]

1. d4 {[%clk 0:02:59]}  Nf6 {[%clk 0:03:00]} 2. f3 {[%clk 0:02:59]}  c5 {[%clk 0:02:59]} 3. d5 {[%clk 0:02:59]}  e5 {[%clk 0:02:59]} 4. e4 {[%clk 0:02:57]}  d6 {[%clk 0:02:59]} 5. a4 {[%clk 0:02:57]}  a6 {[%clk 0:02:59]} 6. Na3 {[%clk 0:02:57]}  g6 {[%clk 0:02:59]} 7. Be3 {[%clk 0:02:56]}  Bg7 {[%clk 0:02:59]} 8. Qd2 {[%clk 0:02:56]}  O-O {[%clk 0:03:00]} 9. Ne2 {[%clk 0:02:56]}  Nh5 {[%clk 0:02:59]} 10. g4 {[%clk 0:02:56]}  Nf4 {[%clk 0:02:57]} 11. Nxf4 {[%clk 0:02:46]}  exf4 {[%clk 0:02:57]} 12. Bxf4 {[%clk 0:02:47]}  Bxb2 {[%clk 0:02:58]} 13. Ra2 {[%clk 0:02:47]}  Bg7 {[%clk 0:02:53]} 14. Nc4 {[%clk 0:02:45]}  Nd7 {[%clk 0:02:48]} 15. Bxd6 {[%clk 0:02:36]}  Re8 {[%clk 0:02:48]} 16. Bd3 {[%clk 0:02:36]}  Ne5 {[%clk 0:01:38]} 17. Bxe5 {[%clk 0:02:34]}  Bxe5 {[%clk 0:01:39]} 18. Nxe5 {[%clk 0:02:35]}  Rxe5 {[%clk 0:01:39]} 19. Qf4 {[%clk 0:02:27]}  Qe7 {[%clk 0:01:29]} 20. Kd2 {[%clk 0:02:16]}  f6 {[%clk 0:01:22]} 21. Rb2 {[%clk 0:02:11]}  g5 {[%clk 0:01:20]} 22. Qg3 {[%clk 0:02:08]}  Qd6 {[%clk 0:01:17]} 23. h4 {[%clk 0:02:05]}  Rxd5 {[%clk 0:01:16]} 24. Qxd6 {[%clk 0:02:04]}  Rxd6 {[%clk 0:01:16]} 25. hxg5 {[%clk 0:02:04]}  c4 {[%clk 0:01:16]} 26. gxf6 {[%clk 0:02:01]}  cxd3 {[%clk 0:01:16]} 27. e5 {[%clk 0:01:52]}  Rd5 {[%clk 0:01:12]} 28. cxd3 {[%clk 0:01:39]}  Rxe5 {[%clk 0:01:10]} 29. Rb6 {[%clk 0:01:29]}  Re6 {[%clk 0:01:07]} 30. Rhb1 {[%clk 0:01:20]}  Rxb6 {[%clk 0:01:07]} 31. Rxb6 {[%clk 0:01:19]}  a5 {[%clk 0:01:07]} 32. g5 {[%clk 0:01:17]}  Ra6 {[%clk 0:01:06]} 33. Rb5 {[%clk 0:01:16]}  Kf7 {[%clk 0:01:05]} 34. Ke3 {[%clk 0:01:12]}  Kg6 {[%clk 0:01:04]} 35. f4 {[%clk 0:01:11]}  Re6+ {[%clk 0:01:00]} 36. Kf3 {[%clk 0:01:11]}  Rd6 {[%clk 0:01:00]} 37. Ke3 {[%clk 0:01:06]}  b6 {[%clk 0:00:55]} 38. d4 {[%clk 0:01:03]}  Bd7 {[%clk 0:00:54]} 39. Re5 {[%clk 0:00:58]}  Bxa4 {[%clk 0:00:53]} 40. Re7 {[%clk 0:00:59]}  Bb3 {[%clk 0:00:43]} 41. Rg7+ {[%clk 0:00:56]}  Kf5 {[%clk 0:00:42]} 42. Rxh7 {[%clk 0:00:57]}  Re6+ {[%clk 0:00:38]} 43. Kf3 {[%clk 0:00:56]}  Bd5+ {[%clk 0:00:34]} 44. Kg3 {[%clk 0:00:54]}  Re3+ {[%clk 0:00:34]} 45. Kf2 {[%clk 0:00:54]}  Rf3+ {[%clk 0:00:30]} 46. Ke2 {[%clk 0:00:53]}  Rxf4 {[%clk 0:00:30]} 47. Rd7 {[%clk 0:00:48]}  Ke4 {[%clk 0:00:23]} 48. Rd6 {[%clk 0:00:40]}  Rg4 {[%clk 0:00:17]} 49. Rxb6 {[%clk 0:00:39]}  Rxg5 {[%clk 0:00:15]} 50. Kd2 {[%clk 0:00:36]}  a4 {[%clk 0:00:15]} 51. Kc3 {[%clk 0:00:36]}  a3 {[%clk 0:00:15]} 52. Ra6 {[%clk 0:00:36]}  a2 {[%clk 0:00:15]} 53. Ra5 {[%clk 0:00:31]}  Rf5 {[%clk 0:00:14]} 54. Kb2 {[%clk 0:00:29]}  Rf2+ {[%clk 0:00:14]} 55. Kc3 {[%clk 0:00:29]}  Rxf6 {[%clk 0:00:14]} 56. Ra7 {[%clk 0:00:28]}  Rf2 {[%clk 0:00:13]} 57. Re7+ {[%clk 0:00:25]}  Kf5 {[%clk 0:00:13]} 58. Ra7 {[%clk 0:00:25]}  Rf1 {[%clk 0:00:10]} 59. Kb2 {[%clk 0:00:24]}  Ke4 {[%clk 0:00:08]} 60. Ra4 {[%clk 0:00:23]}  Kd3 {[%clk 0:00:08]} 61. Ra3+ {[%clk 0:00:23]}  Kxd4 {[%clk 0:00:07]} 62. Ra5 {[%clk 0:00:23]}  Rb1+ {[%clk 0:00:06]} 63. Kc2 {[%clk 0:00:22]}  a1=Q {[%clk 0:00:05]} 64. Rxa1 {[%clk 0:00:20]}  Rxa1 {[%clk 0:00:05]} 65. Kb2 {[%clk 0:00:20]}  Ra7 {[%clk 0:00:06]} 66. Kc2 {[%clk 0:00:20]}  Rb7 {[%clk 0:00:06]} 67. Kd2 {[%clk 0:00:20]}  Rb2+ {[%clk 0:00:05]} 68. Kc1 {[%clk 0:00:20]}  Kc3 {[%clk 0:00:06]} 69. Kd1 {[%clk 0:00:21]}  Bc4 {[%clk 0:00:05]} 70. Ke1 {[%clk 0:00:21]}  Ra2 {[%clk 0:00:06]} 71. Kd1 {[%clk 0:00:21]}  Rg2 {[%clk 0:00:06]} 72. Ke1 {[%clk 0:00:21]}  Rh2 {[%clk 0:00:06]} 73. Kd1 {[%clk 0:00:21]}  Kd3 {[%clk 0:00:06]} 74. Ke1 {[%clk 0:00:21]}  Ke3 {[%clk 0:00:06]} 75. Kd1 {[%clk 0:00:18]}  Re2 {[%clk 0:00:07]} 76. Kc1 {[%clk 0:00:18]}  Bg8 {[%clk 0:00:07]} 77. Kd1 {[%clk 0:00:18]}  Bf7 {[%clk 0:00:08]} 78. Kc1 {[%clk 0:00:19]}  Be8 {[%clk 0:00:09]} 79. Kd1 {[%clk 0:00:19]}  Kd3 {[%clk 0:00:10]} 80. Kc1 {[%clk 0:00:20]}  Rd2 {[%clk 0:00:10]} 81. Kb1 {[%clk 0:00:20]}  Kc3 {[%clk 0:00:10]} 82. Kc1 {[%clk 0:00:21]}  Bd7 {[%clk 0:00:11]} 83. Kb1 {[%clk 0:00:22]}  Rd3 {[%clk 0:00:11]} 84. Kc1 {[%clk 0:00:23]}  Bc6 {[%clk 0:00:10]} 85. Kb1 {[%clk 0:00:24]}  Bb7 {[%clk 0:00:09]} 86. Ka2 {[%clk 0:00:24]}  Bd5+ {[%clk 0:00:09]} 87. Kb1 {[%clk 0:00:24]}  Rd1# {[%clk 0:00:09]} 0-1


[Site "https://www.chess.com"]